bitfinex/quotes_BTCUSD_20240629
["timestamp","ask_amount","ask_price","bid_price","bid_amount"]
[1719667745819,0.125195,61148.0,61147.0,0.1748763]
[1719667745969,0.125195,61148.0,61147.0,0.32173893]
[1719667745970,0.0827,61148.0,61147.0,0.32173893]
[1719667746352,0.01,61148.0,61147.0,0.32173893]
[1719667746547,0.0957,61148.0,61147.0,0.30273893]
[1719667746844,0.0957,61148.0,61147.0,0.32273893]
[1719667747049,0.0767,61148.0,61147.0,0.32073893]
[1719667747223,0.0777,61148.0,61147.0,0.32073893]
[1719667748594,0.0787,61148.0,61147.0,0.32073893]
[1719667749002,0.0767,61148.0,61147.0,0.32073893]
[1719667749210,0.0777,61148.0,61147.0,0.32073893]
[1719667749612,0.0767,61148.0,61147.0,0.32173893]
[1719667749815,0.0767,61148.0,61147.0,0.32273893]
[1719667750300,0.00084,61162.0,61159.0,0.2132]
[1719667750506,0.0767,61160.0,61159.0,0.1932]
[1719667750656,0.183895,61160.0,61159.0,0.1932]
[1719667751955,0.107195,61160.0,61159.0,0.1942]
[1719667752159,0.0767,61160.0,61159.0,0.1942]
[1719667752374,0.0767,61160.0,61159.0,0.2132]
[1719667752375,0.183895,61160.0,61159.0,0.2132]
[1719667752580,0.190895,61160.0,61159.0,0.1942]
[1719667753447,0.41850834,61171.0,61159.0,0.1952]
[1719667753643,0.0767,61160.0,61159.0,0.1952]
[1719667754188,0.0767,61160.0,61159.0,0.2152]
[1719667754394,0.0767,61160.0,61159.0,0.1952]
[1719667754798,0.0767,61160.0,61159.0,0.2142]
[1719667755182,0.0767,61160.0,61159.0,0.2152]
[1719667755401,0.0767,61160.0,61159.0,0.2142]
[1719667755603,0.0767,61160.0,61159.0,0.2132]
[1719667755809,0.0837,61160.0,61159.0,0.2142]
[1719667756051,0.0837,61160.0,61159.0,0.1952]
[1719667756662,0.0837,61160.0,61159.0,0.1942]
[1719667757002,0.0897,61160.0,61159.0,0.1952]
[1719667758716,0.0897,61160.0,61159.0,0.19109234]
[1719667762385,0.0897,61160.0,61159.0,0.21109234]
[1719667763971,0.0897,61160.0,61159.0,0.19109234]
[1719667765333,0.0897,61160.0,61159.0,0.21109234]
[1719667766244,0.0897,61160.0,61159.0,0.19109234]
[1719667766492,0.0897,61160.0,61159.0,0.21109234]
[1719667766729,0.0897,61160.0,61159.0,0.19109234]
[1719667766964,0.0897,61160.0,61159.0,0.21109234]
[1719667767972,0.0897,61160.0,61159.0,0.19109234]
[1719667769403,0.0897,61160.0,61159.0,0.21109234]
[1719667771884,0.0897,61160.0,61159.0,0.19109234]
[1719667775992,0.0897,61160.0,61159.0,0.21109234]
[1719667776789,0.0897,61160.0,61159.0,0.19109234]
[1719667776931,0.0897,61160.0,61159.0,0.21109234]
[1719667777791,0.013,61160.0,61159.0,0.21109234]
[1719667777999,0.0897,61160.0,61159.0,0.19109234]
[1719667778199,0.0897,61160.0,61159.0,0.21109234]
[1719667778805,0.0897,61160.0,61159.0,0.21119234]
[1719667781557,0.013,61160.0,61159.0,0.21119234]
[1719667781767,0.0897,61160.0,61159.0,0.21119234]
[1719667783099,0.0897,61160.0,61159.0,0.21129234]
[1719667785268,0.0897,61160.0,61159.0,0.19129234]
[1719667786326,0.09054,61160.0,61159.0,0.19129234]
[1719667790269,0.09054,61160.0,61159.0,0.21129234]
[1719667790475,0.01384,61160.0,61159.0,0.35915497]
[1719667790729,0.09054,61160.0,61159.0,0.38215497]
[1719667791686,0.08454,61160.0,61159.0,0.38115497]
[1719667792101,0.07754,61160.0,61159.0,0.38015497]
[1719667792308,0.07754,61160.0,61159.0,0.38315497]
[1719667792503,0.07754,61160.0,61159.0,0.38515497]
[1719667792707,0.07754,61160.0,61159.0,0.38215497]
[1719667793160,0.07754,61160.0,61159.0,0.38315497]
[1719667793619,0.07754,61160.0,61159.0,0.38215497]
[1719667793844,0.07754,61160.0,61159.0,0.38015497]
[1719667795036,0.07754,61160.0,61159.0,0.38315497]
[1719667795483,0.07754,61160.0,61159.0,0.38515497]
[1719667795684,0.07754,61160.0,61159.0,0.38315497]
[1719667796125,0.07754,61160.0,61159.0,0.38515497]
[1719667799258,0.00084,61160.0,61159.0,0.60513979]
[1719667799520,0.07754,61160.0,61159.0,0.60513979]
[1719667800884,0.00084,61160.0,61159.0,0.60513979]
[1719667801085,0.07754,61160.0,61159.0,0.55749395]
[1719667803988,0.07754,61160.0,61159.0,0.54749395]
[1719667804398,0.07754,61160.0,61159.0,0.52749395]
[1719667804597,0.07754,61160.0,61159.0,0.54749395]
[1719667807368,0.07754,61160.0,61159.0,0.55749395]
[1719667807369,0.00084,61160.0,61159.0,0.55749395]
[1719667807600,0.00084,61160.0,61159.0,0.75863369]
[1719667808064,0.00084,61160.0,61159.0,0.95863369]
[1719667808495,0.00084,61160.0,61159.0,0.95563369]
[1719667808849,0.00084,61160.0,61159.0,0.96863369]
[1719667808850,0.00184,61160.0,61159.0,0.96863369]
[1719667809232,0.00184,61160.0,61159.0,0.73863369]
[1719667809649,0.00184,61160.0,61159.0,1.14123369]
[1719667809847,0.00184,61160.0,61159.0,1.34123369]
[1719667810051,0.00184,61160.0,61159.0,1.14123369]
[1719667810275,0.00184,61160.0,61159.0,1.33923369]
[1719667810963,0.00184,61160.0,61159.0,1.35223369]
[1719667813284,0.00184,61160.0,61159.0,1.15223369]
[1719667817742,0.00184,61160.0,61159.0,1.13354879]
[1719667819013,0.00184,61160.0,61159.0,1.16354879]
[1719667819305,0.00184,61160.0,61159.0,1.13354879]
[1719667819454,0.00184,61160.0,61159.0,1.16354879]
[1719667819656,0.00184,61160.0,61159.0,1.13447279]
[1719667820197,0.00184,61160.0,61159.0,1.16447279]
[1719667821720,0.07854,61160.0,61159.0,0.65773305]
[1719667822957,0.00184,61160.0,61159.0,0.65773305]
[1719667823311,0.07854,61160.0,61159.0,0.68073305]
[1719667823529,0.07854,61160.0,61159.0,0.59634071]
[1719667826399,0.07854,61160.0,61159.0,0.49164071]
[1719667827069,0.07854,61160.0,61159.0,0.58911513]
[1719667829163,0.07854,61160.0,61159.0,0.59911513]
[1719667829804,0.07854,61160.0,61159.0,0.58911513]
[1719667831721,0.07854,61160.0,61159.0,0.59911513]
[1719667832963,0.2,61188.0,61172.0,0.18785418]
[1719667833160,0.2,61188.0,61174.0,0.22916609]
[1719667833161,0.48811044,61175.0,61174.0,0.22916609]
[1719667833370,0.16233898,61187.0,61176.0,0.14786263]
[1719667833615,0.0767,61177.0,61176.0,0.14786263]
[1719667833810,1.417726,61177.0,61176.0,0.14786263]
[1719667834159,1.233026,61177.0,61176.0,0.14786263]
[1719667834380,1.007249,61177.0,61175.0,0.14786263]
[1719667834596,0.16233898,61187.0,61176.0,0.33571681]
[1719667834786,0.0767,61177.0,61176.0,0.15896928]
[1719667834961,0.941749,61177.0,61176.0,0.15896928]
[1719667835162,0.866749,61177.0,61176.0,0.15996928]
[1719667835417,0.794049,61177.0,61176.0,0.19775163]
[1719667835593,0.794049,61177.0,61176.0,0.36882346]
[1719667835594,0.870749,61177.0,61176.0,0.36882346]
[1719667835844,0.0807,61177.0,61176.0,0.36982346]
[1719667836254,0.0807,61177.0,61176.0,0.21996083]
[1719667836386,0.0807,61177.0,61176.0,0.36782346]
[1719667837833,0.0807,61177.0,61176.0,0.36882346]
[1719667839439,0.0807,61177.0,61176.0,0.34892346]
[1719667839643,0.0807,61177.0,61176.0,0.34902346]
[1719667839846,0.0807,61177.0,61176.0,0.36902346]
[1719667847599,0.0807,61177.0,61176.0,0.36896126]
[1719667848832,0.0807,61177.0,61176.0,0.16110708]
[1719667849168,0.0807,61177.0,61176.0,0.34896126]
[1719667851942,0.0807,61177.0,61176.0,0.34684551]
[1719667852261,0.0807,61177.0,61176.0,0.33791681]
[1719667853946,0.0807,61177.0,61176.0,0.33884081]
[1719667861689,0.0807,61177.0,61176.0,0.19097818]
[1719667861894,0.0807,61177.0,61176.0,0.33884081]
[1719667863654,0.004,61177.0,61176.0,0.33884081]
[1719667863858,0.0807,61177.0,61176.0,0.33884081]
[1719667866638,0.0807,61177.0,61176.0,0.35884081]
[1719667867168,0.516858,61177.0,61176.0,0.15093148]
[1719667867383,0.625753,61177.0,61176.0,0.15093148]
[1719667867556,0.381493,61177.0,61176.0,0.15093148]
[1719667867760,0.232793,61177.0,61176.0,0.15093148]
[1719667868867,0.0807,61177.0,61176.0,0.15093148]
[1719667869246,0.16233898,61187.0,61176.0,0.2039717]
[1719667869451,0.0767,61177.0,61176.0,0.2039717]
[1719667870320,0.16233898,61187.0,61176.0,0.2039717]
[1719667870474,0.0767,61177.0,61176.0,0.2039717]
[1719667871715,0.0767,61177.0,61176.0,0.2029717]
[1719667872064,0.0767,61177.0,61176.0,0.2039717]
[1719667872212,0.0767,61177.0,61176.0,0.2029717]
[1719667872543,0.0767,61177.0,61176.0,0.2039717]
[1719667873151,0.16233898,61187.0,61176.0,0.2039717]
[1719667873152,0.16233898,61187.0,61176.0,0.39182588]
[1719667873364,0.0767,61177.0,61176.0,0.39182588]
[1719667873897,0.16233898,61187.0,61176.0,0.39182588]
[1719667874026,1.533953,61186.0,61179.0,0.18785418]
[1719667874233,1.533953,61186.0,61176.0,0.22302685]
[1719667874234,0.0767,61180.0,61178.0,0.18785418]
[1719667874439,0.16233898,61187.0,61176.0,0.20302685]
[1719667874440,0.0767,61179.0,61176.0,0.20302685]
[1719667874941,0.0767,61179.0,61178.0,0.18785418]
[1719667875147,0.0767,61179.0,61176.0,0.20302685]
[1719667875464,0.0767,61179.0,61178.0,0.20785418]
[1719667875666,0.0767,61179.0,61178.0,0.1793]
[1719667876280,0.0767,61179.0,61178.0,0.38715418]
[1719667876863,0.0767,61179.0,61178.0,0.1793]
[1719667877075,0.08486,61179.0,61178.0,0.38715418]
[1719667877290,0.08486,61179.0,61178.0,0.1793]
[1719667877612,0.08486,61179.0,61178.0,0.38815418]
[1719667877777,0.08486,61179.0,61178.0,0.1803]
[1719667877971,0.08486,61179.0,61178.0,0.38715418]
[1719667878178,0.08486,61179.0,61178.0,0.1803]
[1719667878381,0.08486,61179.0,61178.0,0.1813]
[1719667878577,0.08486,61179.0,61178.0,0.1803]
[1719667878814,0.08486,61179.0,61178.0,0.1813]
[1719667879225,0.08486,61179.0,61178.0,0.38915418]
[1719667879887,0.08486,61179.0,61178.0,0.1813]
[1719667880099,0.08486,61179.0,61178.0,0.38915418]
[1719667880987,0.00816,61179.0,61178.0,0.39005703]
[1719667881220,0.08486,61179.0,61178.0,0.39005703]
[1719667881674,0.08486,61179.0,61178.0,0.18220285]
[1719667881886,0.08486,61179.0,61178.0,0.18120285]
[1719667882038,0.08486,61179.0,61178.0,0.18220285]
[1719667882236,0.08486,61179.0,61178.0,0.18120285]
[1719667882663,0.08486,61179.0,61178.0,0.18115103]
[1719667883082,0.08486,61179.0,61178.0,0.38900521]
[1719667883491,0.08486,61179.0,61178.0,0.38800521]
[1719667883858,0.08486,61179.0,61178.0,0.18015103]
[1719667884076,0.00816,61179.0,61178.0,0.77661326]
[1719667884462,0.08486,61179.0,61178.0,0.77661326]
[1719667884680,0.08486,61179.0,61178.0,0.77334419]
[1719667885412,0.08486,61179.0,61178.0,0.77434419]
[1719667885646,0.08486,61179.0,61178.0,0.77534419]
[1719667885874,0.08486,61179.0,61178.0,0.86102136]
[1719667886104,0.08486,61179.0,61178.0,0.86702136]
[1719667887050,0.08486,61179.0,61178.0,0.86602136]
[1719667887286,0.08486,61179.0,61178.0,0.87294536]
[1719667887529,0.0857,61179.0,61178.0,0.66509118]
[1719667887765,0.0857,61179.0,61178.0,0.87294536]
[1719667888021,0.0857,61179.0,61178.0,0.78626819]
[1719667890138,0.0857,61179.0,61178.0,0.78026819]
[1719667890564,0.0857,61179.0,61178.0,0.77426819]
[1719667890976,0.0857,61179.0,61178.0,0.78026819]
[1719667891953,0.0857,61179.0,61178.0,0.78626819]
[1719667893673,0.0857,61179.0,61178.0,0.57841401]
[1719667894536,0.0857,61179.0,61178.0,0.57241401]
[1719667894906,0.0857,61179.0,61178.0,0.57841401]
[1719667895116,0.0857,61179.0,61178.0,0.57241401]
[1719667895477,0.0857,61179.0,61178.0,0.78626819]
[1719667899481,0.0857,61179.0,61178.0,0.57841401]
[1719667899610,0.0857,61179.0,61178.0,0.78626819]
[1719667903847,0.0857,61179.0,61178.0,0.57841401]
[1719667904056,0.0857,61179.0,61178.0,0.78626819]
[1719667905839,0.0857,61179.0,61178.0,0.57841401]
[1719667906052,0.0857,61179.0,61178.0,0.78626819]
[1719667913164,0.0857,61179.0,61178.0,0.57841401]
[1719667913569,0.0857,61179.0,61178.0,0.78626819]
[1719667915894,0.0857,61179.0,61178.0,0.88626819]
[1719667916625,0.0857,61179.0,61178.0,0.89626819]
[1719667916822,0.0857,61179.0,61178.0,0.88626819]
[1719667917326,0.0857,61179.0,61178.0,0.88026819]
[1719667917476,0.009,61179.0,61178.0,0.88026819]
[1719667917678,0.009,61179.0,61178.0,0.67841401]
[1719667918058,0.009,61179.0,61178.0,1.06886819]
[1719667918059,0.0857,61179.0,61178.0,1.06886819]
[1719667918177,0.0857,61179.0,61178.0,1.05686819]
[1719667918390,0.0857,61179.0,61178.0,1.06386819]
[1719667918632,0.009,61179.0,61178.0,1.19849775]
[1719667918838,0.0857,61179.0,61178.0,1.19849775]
[1719667919020,0.0857,61179.0,61178.0,1.21149775]
[1719667919424,0.0857,61179.0,61178.0,1.19149775]
[1719667920485,0.0857,61179.0,61178.0,1.20549775]
[1719667920687,0.08180375,61212.0,61195.0,0.18785418]
[1719667920893,0.04860889,61209.0,61197.0,0.08130346]
[1719667921004,0.0767,61198.0,61197.0,0.08130346]
[1719667921208,1.387519,61198.0,61197.0,0.08130346]
[1719667921610,1.387519,61198.0,61195.0,0.18785418]
[1719667921822,1.222823,61197.0,61194.0,0.18785418]
[1719667922031,1.222823,61197.0,61195.0,0.001]
[1719667922364,0.0767,61196.0,61194.0,0.18785418]
[1719667922724,0.907364,61195.0,61194.0,0.00085103]
[1719667924441,0.907364,61195.0,61179.0,0.9622]
[1719667924442,0.907364,61195.0,61191.0,0.00085103]
[1719667924646,0.0767,61193.0,61191.0,0.00085103]
[1719667924870,2.268806,61192.0,61191.0,0.00085103]
[1719667925932,2.508806,61192.0,61191.0,0.00085103]
[1719667926257,2.268806,61192.0,61191.0,0.00085103]
[1719667927153,0.743426,61192.0,61191.0,0.00085103]
[1719667927354,0.0767,61192.0,61191.0,0.00085103]
[1719667927842,0.0767,61192.0,61191.0,0.18870521]
[1719667928404,1.015282,61192.0,61191.0,0.18870521]
[1719667928605,0.647918,61192.0,61191.0,0.00085103]
[1719667928816,0.647918,61192.0,61191.0,0.18870521]
[1719667929048,0.33942,61192.0,61191.0,0.00085103]
[1719667929263,0.33942,61192.0,61191.0,0.20870521]
[1719667931363,0.1893,61192.0,61191.0,0.20870521]
[1719667932002,0.16233898,61208.0,61196.0,0.00085103]
[1719667932286,0.16233898,61208.0,61200.0,0.18870521]
[1719667932287,3.293441,61207.0,61200.0,0.18870521]
[1719667932482,0.20753897,61217.0,61203.0,0.18785418]
[1719667932483,1.538755,61206.0,61203.0,0.18785418]
[1719667932631,1.538755,61206.0,61202.0,0.00085103]
[1719667932632,3.67596098,61215.0,61204.0,0.18785418]
[1719667932842,0.0767,61205.0,61204.0,0.18785418]
[1719667933030,1.57779,61205.0,61204.0,0.18785418]
[1719667933241,1.576041,61205.0,61204.0,0.18785418]
[1719667933446,0.874392,61205.0,61204.0,0.18785418]
[1719667934038,0.874392,61205.0,61204.0,0.18870521]
[1719667934243,0.874392,61205.0,61204.0,0.20870521]
[1719667934244,0.656273,61205.0,61204.0,0.20870521]
[1719667934595,0.656273,61205.0,61204.0,0.31110521]
[1719667935409,0.579573,61205.0,61204.0,0.31110521]
[1719667935630,0.0767,61205.0,61204.0,0.31110521]
[1719667935839,1.34956,61205.0,61204.0,0.29110521]
[1719667936027,1.39048,61205.0,61204.0,0.29110521]
[1719667937197,0.957342,61205.0,61204.0,0.29110521]
[1719667937636,0.715551,61205.0,61204.0,0.29110521]
[1719667938504,0.566679,61205.0,61204.0,0.29110521]
[1719667938674,0.566679,61205.0,61204.0,0.31110521]
[1719667938909,0.501179,61205.0,61204.0,0.31110521]
[1719667939087,0.210279,61205.0,61204.0,0.31110521]
[1719667939316,0.0767,61205.0,61204.0,0.31110521]
[1719667939555,0.286979,61205.0,61204.0,0.31110521]
[1719667939761,0.352479,61205.0,61204.0,0.31110521]
[1719667940167,0.194899,61205.0,61204.0,0.57314419]
[1719667941405,0.194899,61205.0,61204.0,0.36529001]
[1719667941631,0.118199,61205.0,61204.0,0.36529001]
[1719667941970,0.00839,61216.0,61204.0,0.36529001]
[1719667941971,1.389715,61215.0,61212.0,0.00085103]
[1719667942178,0.0767,61213.0,61212.0,0.00085103]
[1719667942383,0.941678,61213.0,61212.0,0.00085103]
[1719667942825,0.37063,61213.0,61212.0,0.20870521]
[1719667942952,0.00839,61216.0,61215.0,0.00085103]
[1719667943155,0.568727,61216.0,61215.0,0.00085103]
[1719667943354,0.568727,61216.0,61215.0,0.07755103]
[1719667943564,0.568727,61216.0,61215.0,0.28540521]
[1719667944114,0.13591,61216.0,61215.0,0.07755103]
[1719667944318,0.13591,61216.0,61215.0,0.56151483]
[1719667944319,0.00839,61216.0,61215.0,0.56151483]
[1719667944520,0.00839,61216.0,61215.0,0.58551483]
[1719667944521,0.08509,61216.0,61215.0,0.58551483]
[1719667944943,0.08509,61216.0,61215.0,0.58451483]
[1719667946366,0.08509,61216.0,61215.0,0.58851483]
[1719667946776,0.08509,61216.0,61215.0,0.01622167]
[1719667947027,0.90593,61216.0,61215.0,0.20707585]
[1719667947227,0.873871,61216.0,61215.0,0.01922167]
[1719667947839,0.873871,61216.0,61215.0,0.01622167]
[1719667948035,0.873871,61216.0,61214.0,0.18785418]
[1719667948264,0.8577,61215.0,61214.0,0.18785418]
[1719667949593,0.8577,61215.0,61210.0,0.26455418]
[1719667949821,0.0767,61213.0,61210.0,0.0767]
[1719667950008,2.450046,61212.0,61208.0,0.02]
[1719667950182,2.450046,61212.0,61204.0,0.7385]
[1719667950183,0.0767,61209.0,61204.0,0.7385]
[1719667950390,0.0767,61205.0,61204.0,0.7385]
[1719667951011,0.445379,61205.0,61198.0,0.171]
[1719667951355,0.0767,61200.0,61198.0,0.171]
[1719667952515,0.0767,61200.0,61199.0,0.1]
[1719667953688,0.0777,61200.0,61199.0,0.1]
[1719667954300,0.0787,61200.0,61199.0,0.114]
[1719667954530,0.002,61200.0,61199.0,0.19530346]
[1719667954756,0.0787,61200.0,61199.0,0.19530346]
[1719667955160,0.0787,61200.0,61199.0,0.20930346]
[1719667959978,0.2,61227.0,61208.0,0.07434125]
[1719667960344,0.0767,61209.0,61208.0,0.07434125]
[1719667960672,4.92643509,61225.0,61208.0,0.12418932]
[1719667960891,0.65044942,61224.0,61208.0,0.07434125]
[1719667961074,0.0767,61209.0,61208.0,0.07434125]
[1719667961281,2.655549,61209.0,61208.0,0.1242942]
[1719667961476,0.0767,61209.0,61208.0,0.07534125]
[1719667962200,2.731539,61209.0,61208.0,0.07534125]
[1719667962440,2.731539,61209.0,61208.0,0.07434125]
[1719667962927,2.731539,61209.0,61208.0,0.07634125]
[1719667963195,2.731539,61209.0,61208.0,0.07534125]
[1719667963448,2.734539,61209.0,61208.0,0.07634125]
[1719667964898,2.734539,61209.0,61208.0,0.07534125]
[1719667965392,2.647719,61209.0,61208.0,0.07634125]
[1719667966219,2.644719,61209.0,61208.0,0.07534125]
[1719667966486,2.647719,61209.0,61208.0,0.07634125]
[1719667966993,0.0817,61209.0,61208.0,0.07634125]
[1719667967234,3.227545,61209.0,61208.0,0.07634125]
[1719667967466,3.060545,61209.0,61208.0,0.07634125]
[1719667967931,3.019626,61209.0,61208.0,0.07634125]
[1719667968239,2.952329,61209.0,61208.0,0.07634125]
[1719667968502,2.767898,61209.0,61208.0,0.07634125]
[1719667969500,2.765898,61209.0,61208.0,0.07534125]
[1719667969749,2.765898,61209.0,61202.0,0.07434125]
[1719667969995,2.765898,61209.0,61200.0,0.4675]
[1719667969996,0.0767,61205.0,61200.0,0.4675]
[1719667970225,0.0767,61209.0,61200.0,0.4675]
[1719667970226,0.0767,61201.0,61200.0,0.4675]
[1719667970494,4.004711,61201.0,61200.0,0.4675]
[1719667970756,4.012711,61201.0,61200.0,0.4675]
[1719667971493,3.897211,61201.0,61200.0,0.4675]
[1719667971996,3.833562,61201.0,61200.0,0.4675]
[1719667972781,3.833562,61201.0,61195.0,0.1842]
[1719667973046,2.362192,61200.0,61195.0,0.1842]
[1719667973291,0.0767,61196.0,61195.0,0.1842]
[1719667973786,0.0767,61196.0,61192.0,0.000924]
[1719667973982,0.0767,61193.0,61192.0,0.000924]
[1719667974192,3.248892,61193.0,61192.0,0.000924]
[1719667974456,3.29901,61193.0,61192.0,0.000924]
[1719667974655,3.29901,61193.0,61189.0,0.4675]
[1719667974861,0.0767,61190.0,61189.0,0.4675]
[1719667975130,2.521718,61190.0,61189.0,0.4675]
[1719667975386,2.587218,61190.0,61189.0,0.4675]
[1719667977541,0.0767,61190.0,61189.0,0.4675]
[1719667977756,2.541498,61190.0,61189.0,0.4685]
[1719667977967,0.0807,61190.0,61189.0,0.4695]
[1719667978172,2.545617,61190.0,61189.0,0.4685]
[1719667978388,0.0807,61190.0,61189.0,0.4685]
[1719667978595,0.0817,61190.0,61189.0,0.002]
[1719667979027,2.628305,61190.0,61189.0,0.002]
[1719667979256,2.588407,61190.0,61189.0,0.002]
[1719667979984,2.436384,61190.0,61189.0,0.002]
[1719667980232,2.513084,61190.0,61189.0,0.002]
[1719667982144,2.14978,61190.0,61189.0,0.002]
[1719667982553,2.075871,61190.0,61189.0,0.002]
[1719667984131,2.075871,61190.0,61189.0,0.002924]
[1719667984785,1.797374,61190.0,61189.0,0.002924]
[1719667984984,1.767551,61190.0,61189.0,0.002924]
[1719667986742,1.732311,61190.0,61189.0,0.0028613]
[1719667988249,0.0767,61190.0,61189.0,0.000924]
[1719667988652,0.0817,61190.0,61189.0,0.002924]
[1719667988931,0.0817,61190.0,61189.0,0.022924]
[1719667989455,1.723034,61190.0,61189.0,0.022924]
[1719667990044,1.722034,61190.0,61189.0,0.021924]
[1719667990245,1.722034,61190.0,61189.0,0.022924]
[1719667990452,1.719034,61190.0,61189.0,0.021924]
[1719667990663,1.640395,61190.0,61189.0,0.021924]
[1719667990871,1.639395,61190.0,61189.0,0.020924]
[1719667991073,1.643395,61190.0,61189.0,0.022924]
[1719667991277,1.640395,61190.0,61189.0,0.021924]
[1719667991486,0.61821,61190.0,61189.0,0.211624]
[1719667991699,0.69791,61190.0,61189.0,0.211624]
[1719667991871,0.69491,61190.0,61189.0,0.211624]
[1719667992373,0.69891,61190.0,61189.0,0.212624]
[1719667993449,0.69791,61190.0,61189.0,0.211624]
[1719667993748,0.69891,61190.0,61189.0,0.211624]
[1719667993958,0.69491,61190.0,61189.0,0.210624]
[1719667994178,0.69891,61190.0,61189.0,0.210624]
[1719667994574,0.681528,61190.0,61189.0,0.210624]
[1719667994804,0.532828,61190.0,61189.0,0.190624]
[1719667996168,0.528828,61190.0,61189.0,0.190624]
[1719667997094,0.527828,61190.0,61189.0,0.190624]
[1719667997521,0.528828,61190.0,61189.0,0.190624]
[1719667997693,0.531828,61190.0,61189.0,0.190624]
[1719667997906,0.52775512,61190.0,61189.0,0.190624]
[1719667998109,0.52875512,61190.0,61189.0,0.190624]
[1719667998313,0.53275512,61190.0,61189.0,0.190624]
[1719667998721,0.004,61190.0,61189.0,0.190624]
[1719667999065,0.0847,61190.0,61189.0,0.35296298]
[1719667999338,0.0807,61190.0,61189.0,0.37296298]
[1719667999554,0.0847,61190.0,61189.0,0.41125928]
[1719668000400,0.0837,61190.0,61189.0,0.41125928]
[1719668000554,0.008,61190.0,61189.0,0.41125928]
[1719668000751,0.0847,61190.0,61189.0,0.41125928]
[1719668000951,0.0777,61190.0,61189.0,0.41125928]
[1719668001160,0.00084,61202.0,61189.0,0.22155928]
[1719668001355,1.380363,61201.0,61192.0,0.1898]
[1719668001557,1.380363,61201.0,61199.0,0.1898]
[1719668001766,0.0767,61200.0,61196.0,0.2098]
[1719668001963,0.0767,61197.0,61196.0,0.1898]
[1719668002150,1.277397,61197.0,61194.0,0.02]
[1719668002510,1.629064,61196.0,61193.0,0.2098]
[1719668002714,0.0767,61194.0,61193.0,0.1898]
[1719668002950,0.0767,61194.0,61193.0,0.2098]
[1719668003155,0.0767,61194.0,61193.0,0.1898]
[1719668003557,1.508482,61194.0,61193.0,0.1898]
[1719668004186,1.508482,61194.0,61193.0,0.1278]
[1719668004796,1.512482,61194.0,61193.0,0.1288]
[1719668005000,1.513482,61194.0,61193.0,0.1298]
[1719668005207,1.513482,61194.0,61193.0,0.002]
[1719668013510,0.0817,61194.0,61193.0,0.002]
[1719668014107,0.0817,61194.0,61193.0,0.28640346]
[1719668014108,0.005,61194.0,61193.0,0.28640346]
[1719668014334,0.0817,61194.0,61193.0,0.2251]
[1719668015203,0.0807,61194.0,61193.0,0.021]
[1719668015407,0.656525,61194.0,61193.0,0.2241]
[1719668015607,0.534325,61194.0,61193.0,0.2041]
[1719668015743,0.537325,61194.0,61193.0,0.2041]
[1719668015939,0.537325,61194.0,61193.0,0.2031]
[1719668016143,0.536325,61194.0,61193.0,0.2031]
[1719668016347,0.536325,61194.0,61193.0,0.2231]
[1719668016348,0.540325,61194.0,61193.0,0.2231]
[1719668016544,0.533325,61194.0,61193.0,0.2231]
[1719668016838,0.533325,61194.0,61193.0,0.2031]
[1719668017619,0.534325,61194.0,61193.0,0.2031]
[1719668018017,0.533325,61194.0,61193.0,0.2031]
[1719668018217,0.536325,61194.0,61193.0,0.2031]
[1719668018417,0.537325,61194.0,61193.0,0.2031]
[1719668018750,0.538165,61194.0,61193.0,0.2031]
[1719668018961,0.535165,61194.0,61193.0,0.2031]
[1719668019152,0.534165,61194.0,61193.0,0.2231]
[1719668019353,0.537165,61194.0,61193.0,0.2231]
[1719668019555,0.538165,61194.0,61193.0,0.2231]
[1719668019993,0.285807,61194.0,61193.0,0.2231]
[1719668020200,0.362507,61194.0,61193.0,0.2231]
[1719668020805,0.284807,61194.0,61193.0,0.2231]
[1719668021010,0.284807,61194.0,61193.0,0.2031]
[1719668021011,0.08054,61194.0,61193.0,0.2031]
[1719668021219,0.08154,61194.0,61193.0,0.2031]
[1719668021636,0.00484,61194.0,61193.0,0.2031]
[1719668021843,0.00084,61194.0,61193.0,0.3031]
[1719668022046,0.07754,61194.0,61193.0,0.3331]
[1719668022256,0.08054,61194.0,61193.0,0.3341]
[1719668022703,0.07754,61194.0,61193.0,0.3331]
[1719668022921,0.07754,61194.0,61193.0,0.3675024]
[1719668023296,0.07754,61194.0,61193.0,0.3665024]
[1719668024637,0.07754,61194.0,61193.0,0.3685024]
[1719668025039,0.07754,61194.0,61193.0,0.3585024]
[1719668025422,0.07754,61194.0,61193.0,0.3565024]
[1719668025636,0.07754,61194.0,61193.0,0.3585024]
[1719668025831,0.07754,61194.0,61193.0,0.3595024]
[1719668027332,0.07754,61194.0,61193.0,0.3585024]
[1719668027541,0.07754,61194.0,61193.0,0.3605024]
[1719668029232,0.07754,61194.0,61193.0,0.3705024]
[1719668029608,0.00084,61194.0,61193.0,0.55584138]
[1719668029839,0.07754,61194.0,61193.0,0.55584138]
[1719668030886,0.07754,61194.0,61193.0,0.54584138]
[1719668033893,0.07754,61194.0,61193.0,0.51243898]
[1719668035953,0.00084,61194.0,61193.0,0.51243898]
[1719668036159,0.00084,61194.0,61193.0,0.49243898]
[1719668036539,0.00084,61194.0,61193.0,0.52243898]
[1719668037130,0.00084,61194.0,61193.0,0.69493898]
[1719668037332,0.00084,61194.0,61193.0,0.78452528]
[1719668037529,0.00084,61194.0,61193.0,0.78252528]
[1719668038032,0.00084,61194.0,61193.0,0.78652528]
[1719668038236,0.00084,61194.0,61193.0,0.78052528]
[1719668038436,0.00084,61194.0,61193.0,0.79652528]
[1719668038844,0.00084,61194.0,61193.0,0.78052528]
[1719668039195,0.00084,61194.0,61193.0,0.80852528]
[1719668042237,0.08130346,61224.0,61213.0,0.18975579]
[1719668042439,0.56481044,61214.0,61213.0,0.18975579]
[1719668042640,3.489437,61214.0,61203.0,0.4675]
[1719668042883,0.0767,61204.0,61203.0,0.4875]
[1719668043084,0.0767,61204.0,61203.0,0.02]
[1719668043298,0.0767,61204.0,61202.0,0.02]